Cogmind - Beta 13 @@@ ROGUE MODE // 2024.04.10 @ 22:18:29 Player: opdo Result: Destroyed by D-53 Grenadier with Mini Grenade Launcher Performance ------------- Evolutions (0) 0 Regions Visited (4) 800 Robots Destroyed (22) 110 Value Destroyed (451) 451 Prototype IDs (23) 460 Alien Tech Used (0) 0 Bonus (385) 385 TOTAL SCORE: 2206 Bonus ------- Follower Combat Kills 85 Aligned with FarCom 300 Cogmind --------- Core Integrity 0/250 Matter 279/300 Energy 150/150 System Corruption 1% Temperature Cool (0) Movement Rolling (110) Ox2 Location -9/Mines Parts ------- > --- POWER (1) -------- Light Angular Momentum Engine > --- PROPULSION (2) --- Aluminum Leg Wheel > --- UTILITY (2) ------ Medium Storage Unit Improved Signal Interpreter > --- WEAPON (2) ------- Minigun Flak Cannon > --- INVENTORY (10) --- Xenon Bombardment Thruster Flying Fortress v7 Improved Terrain Scanner Terrain Scan Processor Decoy Drone Bay Gauss Rifle Peak State ------------ > --- POWER ------------ Light Angular Momentum Engine > --- PROPULSION ------- Aluminum Leg Wheel > --- UTILITY ---------- Medium Storage Unit Improved Signal Interpreter > --- WEAPON ----------- Minigun Flak Cannon > --- INVENTORY -------- Xenon Bombardment Thruster Flying Fortress v7 Sensor Array Improved Terrain Scanner Terrain Scan Processor Gauss Rifle Chainsword [Rating: 22] Favorites ----------- Power Ion Engine Engine Ion Engine Propulsion Aluminum Leg Leg Aluminum Leg Wheel Wheel Utility Small Storage Unit Device Improved Terrain Scanner Storage Small Storage Unit Processor Improved Signal Interpreter Weapon Assault Rifle Energy Gun Small Laser Ballistic Gun Assault Rifle Ballistic Cannon Flak Cannon Build | -11 -10 -10 -10 -9 ------- Run | Yrd Mat Min Exi Min Slots Evolved . | . . . . . Power . | . . . . . Propulsion . | . . . . . Utility . | . . . . . Weapon . | . . . . . Parts Attached 30 | 7 12 9 1 1 Power 4 | 1 2 1 . . Engine 4 | 1 2 1 . . Core . | . . . . . Reactor . | . . . . . Propulsion 10 | 2 4 3 . 1 Treads . | . . . . . Leg 8 | 2 4 1 . 1 Wheel 2 | . . 2 . . Hover . | . . . . . Flight . | . . . . . Utility 6 | 1 3 1 1 . Device 1 | . 1 . . . Storage 2 | 1 . . 1 . Processor 3 | . 2 1 . . Hackware . | . . . . . Protection . | . . . . . Artifact . | . . . . . Weapon 10 | 3 3 4 . . Energy Gun 1 | 1 . . . . Energy Cannon . | . . . . . Ballistic Gun 8 | 2 3 3 . . Ballistic Cannon 1 | . . 1 . . Launcher . | . . . . . Special Weapon . | . . . . . Impact Weapon . | . . . . . Slashing Weapon . | . . . . . Piercing Weapon . | . . . . . Special Melee Weapon . | . . . . . Unidentified Prototypes . | . . . . . Parts Lost 2 | . 1 . . 1 Power 1 | . 1 . . . Propulsion 1 | . . . . 1 Utility . | . . . . . Weapon . | . . . . . Highest Loss Streak 1 | . 1 . . 1 To Critical Strikes . | . . . . . Average Slot Usage (%) 98 | . 97 99 100 96 Engine 13 | . 13 14 14 14 Leg 13 | . 27 10 . 10 Wheel 13 | . . 17 28 14 Device 1 | . 3 . . . Storage 14 | . 14 14 14 14 Processor 12 | . 9 14 14 14 Ballistic Gun 19 | . 24 19 14 14 Ballistic Cannon 7 | . . 8 14 14 Naked Turns . | . . . . . Heaviest Build 28 | 11 14 23 28 28 Greatest Support 20 | 20 20 20 20 20 Greatest Overweight (x) 2 | 2 2 1 1 2 Average Overweight (x) . | . . . 1 1 Largest Inventory Capacity 10 | 8 8 8 10 10 Average Capacity 8 | 7 8 8 8 10 Most Carried 10 | 6 8 8 8 10 Average Carried 7 | 3 6 7 7 9 Final Capacity 10 | 8 8 8 10 10 Final Carried 10 | 6 7 8 8 10 Class Distribution -------------------- 100% | Mutant Dominant Class ---------------- Mutant | -10/Materials Mutant | -10/Mines Mutant | -10/Exiles Mutant | -9/Mines Resources | -11 -10 -10 -10 -9 ----------- Run | Yrd Mat Min Exi Min Matter Collected 740 | 179 161 209 . 191 Remotely . | . . . . . Salvage Created 453 | 80 191 182 . . Parts 40 | 5 24 11 . . Haulers Intercepted . | . . . . . Recyclers Shooed 1 | 1 . . . . Parts Field Recycled . | . . . . . Retrieved Matter . | . . . . . Parts Self-Destructed . | . . . . . Prevented . | . . . . . Kills | -11 -10 -10 -10 -9 ------- Run | Yrd Mat Min Exi Min Combat Hostiles Destroyed 18 | . 9 9 . . Guns 13 | . 6 7 . . Cannons 2 | . . 2 . . AOE 3 | . 3 . . . Classes Destroyed 6 | 2 4 . . . Builder 1 | . 1 . . . Tunneler 1 | 1 . . . . Recycler 1 | 1 . . . . Watcher 1 | . 1 . . . Swarmer 12 | . 6 6 . . Grunt 6 | . 3 3 . . Best Kill Streak 7 | 1 7 3 . . Combat Bots Only 6 | . 6 3 . . Max Kills in Single Turn 6 | 1 6 1 . . Gunslinging 1 | . 1 . . . Exploded 3 | . 3 . . . Melee . | . . . . . Uniques/NPCs Destroyed . | . . . . . Combat | -11 -10 -10 -10 -9 -------- Run | Yrd Mat Min Exi Min Hostile Shots Fired 87 | . 29 53 . 5 Missed 14 | . 6 7 . 1 Damage Taken 972 | . 328 476 . 168 Core 258 | . 132 87 . 39 Absorbed by Shields . | . . . . . Core Remaining (%) 100 | 100 . . . . Volleys Fired 50 | 7 18 25 . . Largest 2 | 2 2 2 . . Hottest 69 | 60 60 69 . . Shots Fired 101 | 14 36 50 . 1 Gun 91 | 14 36 41 . . Cannon 10 | . . 9 . 1 Launcher . | . . . . . Special . | . . . . . Kinetic 91 | 7 33 50 . 1 Thermal 10 | 7 3 . . . Explosive . | . . . . . Electromagnetic . | . . . . . Robot Hit Streak 11 | 6 3 11 . 7 Robot Miss Streak 7 | 2 4 7 . 4 Penetration Max . | . . . . . Secondary Targets 5 | . 3 2 . . Max Gunslinging Chain 1 | . 1 1 . . Shots Hit Robots 58 | 8 16 33 . 1 Core Hits 32 | 3 11 18 . . Critical Kills . | . . . . . Critical Parts Destroyed 1 | . 1 . . . Critical Strikes 1 | . 1 . . . Destroy 1 | . 1 . . . Melee Attacks . | . . . . . Impact . | . . . . . Slashing . | . . . . . Piercing . | . . . . . Sneak Attacks . | . . . . . Combat Hostiles . | . . . . . Follow-up Attacks . | . . . . . Damage Inflicted 1208 | 131 613 458 . 6 Guns 639 | 131 201 307 . . Cannons 139 | . . 133 . 6 Explosions 412 | . 412 . . . Melee . | . . . . . Ramming 18 | . . 18 . . Kinetic 712 | 65 201 440 . 6 Thermal 478 | 66 412 . . . Explosive . | . . . . . Electromagnetic . | . . . . . Impact . | . . . . . Slashing . | . . . . . Piercing . | . . . . . Highest Corruption 1 | . . . . 1 Average Corruption 1 | . . . . 1 Corruption Purged . | . . . . . Corruption Blocked . | . . . . . Effects 3 | . . . . 3 Matter Fused 1 | . . . . 1 Data Loss (minor) 1 | . . . . 1 Misfires 1 | . . . . 1 Overload Shots . | . . . . . Overflow Damage 99 | . 99 . . . Projectiles . | . . . . . Explosions 99 | . 99 . . . Melee . | . . . . . Knockbacks 3 | . . 2 . 1 Impact . | . . . . . Kinetic 3 | . . 2 . 1 Secondary . | . . . . . Self-Inflicted Damage 109 | . 100 9 . . Shots 1 | . 1 . . . Rammed 1 | . . 1 . . Targets Rammed 1 | . . 1 . . Kicked . | . . . . . Crushed . | . . . . . Highest Temperature 74 | . 9 74 . 8 Average Temperature 24 | . 5 27 . 6 Received Heat Transfer 300 | . 96 186 . 18 Siege Activations . | . . . . . Robots Corrupted . | . . . . . Combat Hostiles . | . . . . . Parts Fried . | . . . . . Impact Corruptions . | . . . . . Robots Melted . | . . . . . Combat Hostiles . | . . . . . Parts Melted . | . . . . . Heat Transferred 450 | 150 300 . . . Parts Sabotaged . | . . . . . Parts Stolen . | . . . . . Parts Stripped . | . . . . . Power Chain Reactions . | . . . . . Alert | -11 -10 -10 -10 -9 ------- Run | Yrd Mat Min Exi Min Peak Influence 353 | 10 353 220 . 67 Initial 70 | . 6 70 . . Average 138 | 3 193 155 . 53 Maximum Alert Level 1 | . 1 1 . . Low Security (%) 66 | 100 46 62 . 100 Level 1 33 | . 53 37 . . Level 2 . | . . . . . Level 3 . | . . . . . Level 4 . | . . . . . Level 5 . | . . . . . High Security . | . . . . . Max Security . | . . . . . Squads Dispatched 3 | . 2 1 . . Investigation 2 | . 1 1 . . Extermination . | . . . . . Reinforcement 1 | . 1 . . . Assault . | . . . . . Garrison . | . . . . . Intercept . | . . . . . Searches Triggered . | . . . . . Construction Impeded . | . . . . . Haulers Reinforced . | . . . . . Active Scanning Responses . | . . . . . Cargo Convoy Interrupts . | . . . . . Stealth | -11 -10 -10 -10 -9 --------- Run | Yrd Mat Min Exi Min Distress Signals 2 | . 2 . . . Communications Jammed . | . . . . . Distress Signals . | . . . . . Times Spotted 34 | . 14 11 . 9 Peak Tracking Total 15 | . 7 3 . 15 Tactical Retreats 3 | . . 1 . 2 Traps | -11 -10 -10 -10 -9 ------- Run | Yrd Mat Min Exi Min Traps Triggered 5 | . 4 . . 1 Indirectly . | . . . . . Trap Hack Attempts . | . . . . . Triggered . | . . . . . Disarmed . | . . . . . Reprogrammed . | . . . . . Reused . | . . . . . Traps Extracted . | . . . . . Installed . | . . . . . Triggered . | . . . . . Machines | -11 -10 -10 -10 -9 ---------- Run | Yrd Mat Min Exi Min Machines Disabled 2 | . 2 . . . Max in Single Turn 2 | . 2 . . . Machines Repaired . | . . . . . Machines Dismantled . | . . . . . Machines Sabotaged 1 | . 1 . . . Overloaded Fab Kills . | . . . . . Hacking | -11 -10 -10 -10 -9 --------- Run | Yrd Mat Min Exi Min Machines Accessed 6 | . 2 1 1 2 Terminals 2 | . 2 . . . Fabricators . | . . . . . Repair Stations . | . . . . . Recycling Units . | . . . . . Scanalyzers . | . . . . . Garrison Access . | . . . . . Total Hacks 7 | . 3 1 1 2 Successful 5 | . 1 1 1 2 Failed 2 | . 2 . . . Catastrophic . | . . . . . Database Lockouts . | . . . . . Manual 4 | . 3 . 1 . Terminals 3 | . 3 . . . Fabricators . | . . . . . Repair Stations . | . . . . . Recycling Units . | . . . . . Scanalyzers . | . . . . . Garrison Access . | . . . . . Terminal Hacks 4 | . . 1 1 2 Open Door 3 | . . 1 . 2 Derelict Proto ID Bank 1 | . . . 1 . Fabricator Hacks . | . . . . . Repair Station Hacks . | . . . . . Recycling Unit Hacks . | . . . . . Scanalyzer . | . . . . . Garrison Access Hacks . | . . . . . Unauthorized Hacks 1 | . 1 . . . Terminals 1 | . 1 . . . Sabotage 1 | . 1 . . . Fabricators . | . . . . . Repair Stations . | . . . . . Recycling Units . | . . . . . Scanalyzers . | . . . . . Garrison Access . | . . . . . Data Cores Recovered . | . . . . . Used . | . . . . . Hacking Detections 1 | . 1 . . . Full Trace Events . | . . . . . Feedback Events . | . . . . . Feedback Blocked . | . . . . . Robot Schematics Acquired . | . . . . . Robots Built . | . . . . . Authchips . | . . . . . Time . | . . . . . Total Robot Build Rating . | . . . . . Part Schematics Acquired . | . . . . . Parts Built . | . . . . . Authchips . | . . . . . Time . | . . . . . Total Part Build Rating . | . . . . . Parts Repaired . | . . . . . Time . | . . . . . Parts Recycled . | . . . . . Recycled Matter . | . . . . . Retrieved Matter . | . . . . . Retrieved Components . | . . . . . Parts Scanalyzed . | . . . . . Part Schematics Acquired . | . . . . . Parts Damaged . | . . . . . Bothacking | -11 -10 -10 -10 -9 ------------ Run | Yrd Mat Min Exi Min Used RIF Installer . | . . . . . Robots Hacked . | . . . . . Non-combat . | . . . . . Combat . | . . . . . Robot Hacks Applied . | . . . . . Relay Couplers Released . | . . . . . Fabnet Peak Effective % . | . . . . . Robots Rewired . | . . . . . Allies Hacked . | . . . . . Hacks Repelled . | . . . . . Allies | -11 -10 -10 -10 -9 -------- Run | Yrd Mat Min Exi Min Total Allies 4 | . . 1 . 3 Largest Group 3 | . . 1 . 3 Highest-Rated Group 40 | . . 31 . 40 Highest-Rated Ally 31 | . . 31 . 16 Total Orders 1 | . . . . 1 GUARD 1 | . . . . 1 Ally Attacks 37 | . . 10 . 27 Total Damage 391 | . . 107 . 284 Kills 4 | . . 1 . 3 Allies Corrupted . | . . . . . Allies Melted . | . . . . . Intel | -11 -10 -10 -10 -9 ------- Run | Yrd Mat Min Exi Min Robot Analysis Total . | . . . . . Derelict Logs Recovered 3 | . . 2 . 1 Drone Launches . | . . . . . Drone Recoveries . | . . . . . Exploration | -11 -10 -10 -10 -9 ------------- Run | Yrd Mat Min Exi Min Turns Passed 2028 | 110 539 801 242 336 Spaces Moved 1666 | 64 374 719 250 259 Core 8 | 6 2 . . . Treads . | . . . . . Legs 643 | 58 372 213 . . Wheels 1015 | . . 506 250 259 Hover . | . . . . . Flight . | . . . . . Fastest Speed 50 | 50 100 80 95 95 Average Speed 103 | 115 120 93 95 109 Slowest Speed 190 | 150 190 120 95 110 Overloaded Moves . | . . . . . Propulsion Burnouts . | . . . . . Robots Hopped . | . . . . . Cave-ins Triggered . | . . . . . Exploration Rate (%) 57 | 3 77 99 60 46 Regions Visited 4 Branch Regions 3 Pre-discovered Areas . | . . . . . Known Exits Taken 3 | . 1 1 1 . Unknown Exits Taken 1 | 1 . . . . Scrap Searched 2 | . . 1 . 1 Spaces Dug . | . . . . . Terrain Destroyed 28 | . 28 . . . Melee . | . . . . . Projectile . | . . . . . AOE 28 | . 28 . . . Terrain Rammed . | . . . . . Walls Destroyed . | . . . . . Machines Disabled . | . . . . . Actions | -11 -10 -10 -10 -9 --------- Run | Yrd Mat Min Exi Min Total 1877 | 84 423 800 256 314 Wait 102 | . 16 39 . 47 Move 1662 | 63 373 718 249 259 Hop . | . . . . . Pick Up 15 | 6 2 2 1 4 Fast Attach 17 | 6 9 1 . 1 Attach 5 | 1 2 2 . . Detach 2 | 1 1 . . . Swap 8 | . 1 6 1 . Drop 15 | . 1 6 5 3 Fire 50 | 7 18 25 . . Melee . | . . . . . Ram 1 | . . 1 . . Kick . | . . . . . Crush . | . . . . . Escape Stasis . | . . . . . Rewire . | . . . . . Trap . | . . . . . Miscellaneous . | . . . . . Route ------- -11/Scrapyard -10/Materials (discovered 4 exits: *Mat x3 / *Min) -10/Mines (discovered 4 exits: *Mat x2 / *Exi / Sub) -10/Exiles -9/Mines History --------- Turn | Location | Event 16 | -11/Scrapyard | Discovered new exit (range 15) 111 | -11/Scrapyard | Entered Materials 166 | -10/Materials | Discovered new exit (range 9) 305 | -10/Materials | Build established: Mutant 336 | -10/Materials | Discovered new exit (range 8) 371 | -10/Materials | Identified exit to Materials 398 | -10/Materials | Core integrity fell below 50% 605 | -10/Materials | Discovered exit to Materials (range 4) 638 | -10/Materials | Discovered new exit (range 11) 649 | -10/Materials | Identified exit to Mines 650 | -10/Materials | Entered Mines 779 | -10/Mines | Discovered exit to Materials (range 11) 951 | -10/Mines | Met a Derelict shopkeep closing up shop 1012 | -10/Mines | Received a Rocket Launcher from a helpful Derelict 1114 | -10/Mines | Identified exit to Subcaves 1245 | -10/Mines | Received a Mining Laser from a helpful Derelict 1338 | -10/Mines | Core integrity fell below 20% 1447 | -10/Mines | Deemed a non-threat by the Exiles lab entrance 1447 | -10/Mines | Discovered new exit (range 5) 1450 | -10/Mines | Identified exit to Exiles 1451 | -10/Mines | Entered Exiles 1475 | -10/Exiles | Met 8R-AWN 1490 | -10/Exiles | Met EX-HEX 1522 | -10/Exiles | Met EX-BIN 1536 | -10/Exiles | Aligned with FarCom system 1537 | -10/Exiles | Given EX-Vault access code 1560 | -10/Exiles | Opened EX-Vault 1571 | -10/Exiles | Found Flying Fortress v7 1592 | -10/Exiles | Warned to stay clear of 0b10 Research branches 1623 | -10/Exiles | Met EX-DEC 1682 | -10/Exiles | Discovered new exit (range 12) 1692 | -10/Exiles | Identified exit to Mines 1693 | -10/Exiles | Left Exiles lab with Flying Fortress v7 1693 | -10/Exiles | Entered Mines 1753 | -9/Mines | Assisted by bots powering up and referring to "LRC-V3" 1811 | -9/Mines | Met a Derelict who couldn't figure out how to use a Trap Extractor 1846 | -9/Mines | Found the Drone Emporium 1853 | -9/Mines | Found Prototype Device 1988 | -9/Mines | Learned location of 1 exit from Materials 2009 | -9/Mines | Assembled infested the area 2014 | -9/Mines | Assisted by a Guerilla fighting off Assembled 2029 | -9/Mines | Destroyed by D-53 Grenadier with Mini Grenade Launcher Last Messages --------------- Data stored: Materials exits (x1). 02009_ ALERT: Infestation in the mines, dispatching Demolisher response squad. 02012_ JZ-UTT(h): "I'll hold them off! Go on ahead or try to find another way!" 02013_ R-06 Scavenger suffers critical hit (Destroy). 02013_ R-06 Scavenger destroyed. 02014_ A derelict emerges from the shadows: "You need to get out of here! I've been tracking a group of Assembled to figure out where they're coming from, and they're closing on this area, come on!" 02015_ K-01 Serf collects debris. 02017_ HV Slug penetrates Wall. 02019_ K-01 Serf collects debris. 02025_ C-30 ARC bursts open, deploying its payload. 02025_ D-53 Grenadier unfolds itself. 02027_ Core Extractor disabled. Map ----- +----------------------------------------------------+ | ???#### ##### # ### ### #????????????????? | | ??????# #??# # #????????????????? | | ??????# #??# """ ######???????????? | | ?####?# #??# ###### """ ????????????? | | ## ### #??## ##????# """ ##??????????????? | | # ## #??## ####### ##????#??????????? | | # ## #??# ## ####????? ??????????? | | #?# #??# ###### ## #??????? #??????????? | | ##?# #??## ## ##????# ## #??????? #??????????? | | ##?# #???##?# #????## ## #??????# #??????????? | | #?# #??????# #???## #?????# ##?????????? | | #?# #??????# #???# #????? ##????????? | | ### ######## #??## ####????# #######??? | | #?## #????### !**%?? | | ##############?# ##???## /%??? | | ##??????????????# ##???# "#????? | | ####??????????????## ##### = % "#????? | | ?????????????????## =%= #?????? | | ???????????####### = #?????? | | ????????#### """ ###### #?????? | | ???????## "% d ##???# #????? | | ???????# " " ##?# ?? | | ???????# ### d ## ?? | | ???????# ##?# # ## ### # ####??? | | ???????## ##??# # # #???#### ###?????? | | ????????#### ####?# # @ ###????????? #???????? | | ???????????# ## ? # ###????????????#???????? | | ???????????# ## ####### #??????????????????????? | | ???????????# ## #?????# #??????????????????????? | | ???????????# ## ###???# #??????????????????????? | | ???????????# ## ##??# #??????????????????????? | | ????????#### #?## ##?????????????????????? | | ???? ### ##????????????????????? | | ?# ### """ ###### #?????????? | | ?## ?????## """ ## #????????????? | | ???????????## """ ### ### ###??????????????? | | ????????????# ##?## ##???????????????????? | | ????????????## ####???# ## ###??????????????? | | ?????????????#####??????# "% #??????????????? | | ????????????????????????## " #?????????????? | | ?????????????????????????## #????????????? | | ???????????????????????????##### #????????????? | | ????????????????????????????????? ##????????????? | | ??????????????????????????????????##?????????????? | | ?????????????????????????????????????????????????? | | ?????????????????????????????????????????????????? | | | | | | | | | +----------------------------------------------------+ Best States ------------- Heat Dissipation 25 Energy Generation 18 Energy Capacity 250 Matter Stores 279 Matter Capacity 300 Sight Range 18 Terrain Scan Range 16 Terrain Scan Density 10 Evasion (%) 55 Item Schematics ----------------- None Robot Schematics ------------------ None Fabricated ------------ Nothing Alien Tech Used ----------------- None Achievements -------------- None Challenges ------------ None Game ------ Seed NodeComponentBattery Manual? 0 Play Time 00:14:24 Cumulative 35.6 hours Start 2024.04.10 @ 22:06:34 End 2024.04.10 @ 22:18:29 Sessions 1 Manual Loads 0 Difficulty Rogue Special Mode None Game No. 96 Rogue 94 Adventurer 2 Explorer 0 Win Type - Total 0 Types 0/0/0/0/0/0/0/0/0 Lore% 31 Gallery% 43 Achievement% 33 Wizard Run 0 Options --------- Layout 2 ASCII 0 Keyboard 0 Movement Arrows Keybinds 0 Fullscreen 2 Font 24/Smallcaps Map View 50x44 Zoom Use 0% Tactical HUD 1 Map Filters NONE Filters NONE Steam 1 RUN: 69154a97-c4b1-4a9f-ba48-5d9092d50a77